fUST/lending_fUST_20250603
["ID","MTS","AMOUNT","RATE_DAILY","PERIOD"]
[363836294,1748893838426,-440.0,0.00019176,2]
[363836295,1748893838436,-440.0,0.00019177,2]
[363836296,1748893838445,-271.12052583,0.00019177,2]
[363836297,1748893838455,-481.69763156,0.00019177,2]
[363836298,1748893838465,-430.0,0.00019177,2]
[363836299,1748893838475,-542.42,0.00019177,2]
[363836300,1748893838485,-440.0,0.00019177,2]
[363836301,1748893838496,-430.0,0.00019177,2]
[363836302,1748893838506,-227.068106,0.00019178,2]
[363836303,1748893838515,-440.0,0.00019229,2]
[363836304,1748893838525,-705.33593261,0.00019348,2]
[363836305,1748893838535,-594.9417706,0.00019374,2]
[363836306,1748893838546,-440.0,0.0001945,2]
[363836307,1748893838556,-440.0,0.0001945,2]
[363836308,1748893838566,-440.0,0.0001945,2]
[363836309,1748893838575,-440.0,0.0001945,2]
[363836310,1748893838585,-367.46,0.0001945,2]
[363836311,1748893838595,-440.0,0.0001945,2]
[363836312,1748893838605,-350.0,0.0001945,2]
[363836313,1748893838614,-440.0,0.0001945,2]
[363836314,1748893838624,-161.44,0.0001945,2]
[363836315,1748893838635,-350.0,0.0001945,2]
[363836316,1748893838645,-440.0,0.0001945,2]
[363836317,1748893838655,-440.0,0.0001945,2]
[363836318,1748893838664,-440.0,0.0001945,2]
[363836319,1748893838674,-993.47,0.0001945,2]
[363836320,1748893838684,-440.0,0.0001945,2]
[363836321,1748893838694,-440.0,0.0001945,2]
[363836322,1748893838704,-440.0,0.0001945,2]
[363836323,1748893838714,-440.0,0.00019451,2]
[363836324,1748893838724,-542.42,0.00019451,2]
[363836325,1748893838734,-440.0,0.00019451,2]
[363836326,1748893838745,-500.0,0.00019499,2]
[363836327,1748893838755,-422.08,0.00019499,2]
[363836328,1748893838764,-160.0,0.00019499,2]
[363836329,1748893838774,-6809.34782731,0.000195,2]
[363836330,1748893838784,-360.0,0.00019503,2]
[363836331,1748893838794,-705.33593261,0.00019555,2]
[363836332,1748893838804,-419.722,0.00019606,2]
[363836333,1748893838813,-440.0,0.00019724,2]
[363836334,1748893838822,-440.0,0.00019724,2]
[363836335,1748893838831,-440.0,0.00019724,2]
[363836336,1748893838841,-440.0,0.00019724,2]
[363836337,1748893838850,-184.32,0.00019724,2]
[363836338,1748893838860,-440.0,0.00019724,2]
[363836339,1748893838870,-440.0,0.00019724,2]
[363836340,1748893838880,-440.0,0.00019724,2]
[363836341,1748893838890,-440.0,0.00019724,2]
[363836342,1748893838900,-993.47,0.00019724,2]
[363836343,1748893838910,-440.0,0.00019724,2]
[363836344,1748893838920,-294.96254498,0.00019724,2]
[363836345,1748893838931,-440.0,0.00019724,2]
[363836346,1748893838941,-440.0,0.00019725,2]
[363836347,1748893838951,-542.42,0.00019725,2]
[363836348,1748893838960,-440.0,0.00019725,2]
[363836349,1748893838972,-705.33593261,0.00019762,2]
[363836350,1748893838982,-1000.0,0.00019766,2]
[363836351,1748893838991,-250.0,0.00019921,2]
[363836352,1748893839001,-587.0,0.00019945,2]
[363836353,1748893839012,-705.33593261,0.00019969,2]
[363836354,1748893839022,-440.0,0.00019998,2]
[363836355,1748893839032,-440.0,0.00019998,2]
[363836356,1748893839044,-440.0,0.00019998,2]
[363836357,1748893839053,-440.0,0.00019998,2]
[363836358,1748893839063,-440.0,0.00019998,2]
[363836359,1748893839072,-440.0,0.00019998,2]
[363836360,1748893839082,-440.0,0.00019998,2]
[363836361,1748893839092,-440.0,0.00019998,2]
[363836362,1748893839101,-993.47,0.00019998,2]
[363836363,1748893839110,-440.0,0.00019998,2]
[363836364,1748893839120,-440.0,0.00019998,2]
[363836365,1748893839130,-440.0,0.00019999,2]
[363836366,1748893839139,-542.42,0.00019999,2]
[363836367,1748893839151,-440.0,0.00019999,2]
[363836368,1748893839160,-705.33593261,0.00020176,2]
[363836369,1748893839169,-525.611908,0.00020187,2]
[363836370,1748893839179,-440.0,0.00020272,2]
[363836371,1748893839189,-440.0,0.00020272,2]
[363836372,1748893839199,-440.0,0.00020272,2]
[363836373,1748893839209,-440.0,0.00020272,2]
[363836374,1748893839219,-440.0,0.00020272,2]
[363836375,1748893839228,-501.6,0.00020272,2]
[363836376,1748893839237,-229.52,0.00020272,2]
[363836377,1748893839248,-327.76,0.00020272,2]
[363836378,1748893839258,-993.47,0.00020272,2]
[363836379,1748893839268,-440.0,0.00020272,2]
[363836380,1748893839278,-440.0,0.00020272,2]
[363836381,1748893839288,-440.0,0.00020273,2]
[363836382,1748893839298,-542.42,0.00020273,2]
[363836383,1748893839307,-440.0,0.00020273,2]
[363836384,1748893839317,-705.33593261,0.00020383,3]
[363836385,1748893839328,-589.66437569,0.00020453,2]
[363836386,1748893839339,-440.0,0.00020546,2]
[363836387,1748893839348,-440.0,0.00020546,2]
[363836388,1748893839359,-440.0,0.00020546,2]
[363836389,1748893839369,-440.0,0.00020546,2]
[363836391,1748893839381,-440.0,0.00020546,2]
[363836392,1748893839391,-993.47,0.00020546,2]
[363836393,1748893839400,-440.0,0.00020546,2]
[363836394,1748893839414,-440.0,0.00020546,2]
[363836396,1748893839430,-500.0,0.00020547,2]
[363836397,1748893839440,-440.0,0.00020547,2]
[363836398,1748893839451,-542.42,0.00020547,2]
[363836399,1748893839460,-440.0,0.00020547,2]
[363836401,1748893839470,-705.33593261,0.0002059,3]
[363836402,1748893839479,-674.68,0.000206,2]
[363836403,1748893839489,-4865.28,0.000206,2]
[363836404,1748893839499,-1221.87,0.000206,2]
[363836406,1748893839509,-1807.79,0.00020647,2]
[363836407,1748893839518,-705.33593261,0.00020797,4]
[363836408,1748893839529,-440.0,0.0002082,2]
[363836409,1748893839539,-440.0,0.0002082,2]
[363836410,1748893839549,-440.0,0.0002082,2]
[363836411,1748893839559,-440.0,0.0002082,2]
[363836412,1748893839569,-201.11358873,0.0002082,2]
[363836416,1748893839750,-993.47,0.0002082,2]
[363836417,1748893839761,-440.0,0.0002082,2]
[363836418,1748893839771,-440.0,0.0002082,2]
[363836419,1748893839780,-440.0,0.00020821,2]
[363836420,1748893839791,-542.42,0.00020821,2]
[363836421,1748893839800,-440.0,0.00020821,2]
[363836422,1748893839813,-1000.0,0.00020862,2]
[363836423,1748893839823,-28262.42053452,0.00020917,2]
[363836424,1748893839833,-562.90897879,0.00021,7]
[363836427,1748893839972,-3531.2647195,0.00021,7]
[363836428,1748893839982,-705.33593261,0.00021003,4]
[363836429,1748893839992,-363.6824487,0.00021068,2]
[363836431,1748893840002,-440.0,0.00021094,2]
[363836432,1748893840013,-440.0,0.00021094,2]
[363836433,1748893840023,-440.0,0.00021094,2]
[363836434,1748893840033,-440.0,0.00021094,2]
[363836435,1748893840044,-993.47,0.00021094,2]
[363836437,1748893840053,-440.0,0.00021094,2]
[363836439,1748893840063,-440.0,0.00021094,2]
[363836440,1748893840072,-500.0,0.00021095,3]
[363836442,1748893840081,-440.0,0.00021095,2]
[363836444,1748893840090,-542.42,0.00021095,2]
[363836446,1748893840100,-440.0,0.00021095,2]
[363836448,1748893840109,-12668.79298183,0.00021187,10]
[363836450,1748893840119,-1248.46,0.00021194,2]
[363836453,1748893840130,-3882.20693147,0.00021206,3]
[363836455,1748893840140,-11064.33568487,0.00021206,2]
[363836457,1748893840152,-1650.25,0.00021206,2]
[363836459,1748893840165,-300.0015144,0.00021206,2]
[363836483,1748893840390,-430.0,0.0001671,2]
[363836485,1748893840401,-288.12120829,0.00016982,2]
[363836672,1748893842875,-499.85752255,0.0001671,2]
[363836675,1748893842886,-440.0,0.0001671,2]
[363836677,1748893842896,-211.87879171,0.00016982,2]
[363836679,1748893842906,-500.0,0.00016982,2]
[363836681,1748893842916,-154.66052309,0.00016982,2]
[363836683,1748893842926,-500.0,0.00016982,2]
[363836685,1748893842936,-346.81140663,0.00016982,2]
[363836687,1748893842945,-500.0,0.00016982,2]
[363836689,1748893842955,-500.0,0.00016982,2]
[363836691,1748893842965,-500.0,0.00016982,2]
[363836693,1748893842976,-500.0,0.00016982,2]
[363836695,1748893842986,-500.0,0.00016982,2]
[363836698,1748893842996,-420.0,0.00016984,2]
[363836701,1748893843007,-195.71226463,0.00017258,2]
[363836704,1748893843016,-450.0,0.00017258,2]
[363836706,1748893843027,-430.0,0.00017258,2]
[363836709,1748893843036,-266.6117626,0.00021206,2]
[363836712,1748893843050,-411.4823973,0.00021206,2]
[363836828,1748893845949,-430.0,0.0001671,2]
[363836830,1748893845959,-440.0,0.0001671,2]
[363836832,1748893845973,-440.0,0.00016984,2]
[363836834,1748893845984,-440.0,0.00017258,2]
[363836836,1748893845994,-180.8,0.00017258,2]
[363836838,1748893846004,-440.0,0.00017532,2]
[363836840,1748893846015,-440.0,0.00017806,2]
[363836842,1748893846024,-229.2000002,0.0001808,2]
[363836844,1748893846036,-210.7999998,0.0001808,2]
[363836846,1748893846047,-492.4300002,0.00018354,2]
[363836989,1748893891923,200.0,0.0002291,120]
[363836991,1748893892692,150.5,0.0002328,120]
[363836994,1748893893174,150.5,0.0002327,120]
[363836995,1748893893635,275.06,0.0002326,120]
[363837095,1748893941529,500.0,0.000225,120]
[363837100,1748893942299,500.0,0.000225,120]
[363837103,1748893943087,500.0,0.000225,120]
[363837105,1748893943881,500.0,0.000225,120]
[363837109,1748893944658,500.0,0.000225,120]
[363837116,1748893945427,500.0,0.000225,120]
[363837119,1748893946198,500.0,0.000225,120]
[363837121,1748893946962,500.0,0.000225,120]
[363837124,1748893948311,500.0,0.000225,120]
[363837129,1748893949382,500.0,0.000225,120]
[363837133,1748893950161,500.0,0.000225,120]
[363837135,1748893950928,500.0,0.000225,120]
[363837138,1748893951265,200.0,0.00024027,120]
[363837139,1748893951703,500.0,0.000225,120]
[363837141,1748893952479,500.0,0.000225,120]
[363837144,1748893953253,500.0,0.000225,120]
[363837148,1748893954034,500.0,0.000225,120]
[363837154,1748893954805,500.0,0.000225,120]
[363837157,1748893955582,500.0,0.000225,120]
[363837158,1748893956349,500.0,0.000225,120]
[363837162,1748893957144,500.0,0.000225,120]
[363837165,1748893958090,500.0,0.000225,120]
[363837168,1748893958874,500.0,0.000225,120]
[363837172,1748893959661,500.0,0.000225,120]
[363837175,1748893960462,500.0,0.000225,120]
[363837179,1748893961242,500.0,0.000225,120]
[363837181,1748893962060,500.0,0.000225,120]
[363837184,1748893962850,500.0,0.000225,120]
[363837186,1748893963618,500.0,0.000225,120]
[363837187,1748893964386,500.0,0.000225,120]
[363837189,1748893965159,500.0,0.000225,120]
[363837193,1748893965951,500.0,0.000225,120]
[363837197,1748893966743,155.47,0.000225,120]
[363837271,1748894000499,164.31465425,0.00023912,120]
[363837443,1748894071535,200.0,0.00024086,120]
[363837500,1748894098969,500.0,0.000225,120]
[363837505,1748894100123,500.0,0.000225,120]
[363837507,1748894101139,500.0,0.000225,120]
[363837509,1748894101926,500.0,0.000225,120]
[363837512,1748894102691,500.0,0.000225,120]
[363837513,1748894103463,500.0,0.000225,120]
[363837518,1748894104263,500.0,0.000225,120]
[363837522,1748894105052,500.0,0.000225,120]
[363837523,1748894105823,500.0,0.000225,120]
[363837526,1748894106591,500.0,0.000225,120]
[363837528,1748894107406,500.0,0.000225,120]
[363837531,1748894108162,500.0,0.000225,120]
[363837532,1748894108924,500.0,0.000225,120]
[363837534,1748894109791,500.0,0.000225,120]
[363837535,1748894110451,500.0,0.000225,120]
[363837536,1748894111231,500.0,0.000225,120]
[363837541,1748894112143,500.0,0.000225,120]
[363837543,1748894112906,500.0,0.000225,120]
[363837548,1748894113807,500.0,0.000225,120]
[363837552,1748894114557,500.0,0.000225,120]
[363837556,1748894115323,500.0,0.000225,120]
[363837559,1748894116095,500.0,0.000225,120]
[363837561,1748894116852,500.0,0.000225,120]
[363837563,1748894117610,500.0,0.000225,120]
[363837564,1748894118411,500.0,0.000225,120]
[363837565,1748894119305,500.0,0.000225,120]
[363837570,1748894120070,500.0,0.000225,120]
[363837573,1748894120455,164.31465425,0.00023912,120]
[363837575,1748894120740,500.0,0.000225,120]
[363837577,1748894121542,500.0,0.000225,120]
[363837579,1748894122279,500.0,0.000225,120]
[363837580,1748894123056,500.0,0.000225,120]
[363837582,1748894123826,155.47,0.000225,120]
[363837593,1748894131038,200.0,0.00023294,120]
[363837608,1748894139670,473.050717,0.00013699,2]
[363837726,1748894191001,200.0,0.00023715,120]
[363837847,1748894251287,200.0,0.0002427,120]
[363837991,1748894311445,200.0,0.00024189,120]
[363838217,1748894430999,200.0,0.00023642,120]
[363838373,1748894472659,227.07740449,0.00013699,2]
[363838425,1748894491066,200.0,0.00022848,120]
[363838601,1748894551606,200.0,0.00022933,120]
[363838780,1748894611927,200.0,0.00023576,120]
[363838782,1748894612505,150.5,0.0002328,120]
[363838783,1748894612961,150.5,0.0002327,120]
[363838787,1748894613760,275.06,0.0002326,120]
[363838941,1748894672091,200.0,0.00022933,120]
[363839087,1748894732252,200.0,0.00024084,120]
[363839132,1748894753091,-151.00000001,0.00016699,2]
[363839133,1748894753114,-300.0,0.00016707,2]
[363839134,1748894753136,-945.0,0.00016707,2]
[363839135,1748894753157,-9.92951098,0.00016708,2]
[363839483,1748894960105,-189.97961903,0.00016608,2]
[363839484,1748894960127,-300.0,0.00016706,2]
[363839485,1748894960149,-440.0,0.00016707,2]
[363839486,1748894960173,-440.0,0.00016707,2]
[363839487,1748894960200,-440.0,0.00016707,2]
[363839488,1748894960222,-440.0,0.00016707,2]
[363839489,1748894960243,-450.0,0.00016707,2]
[363839490,1748894960263,-400.0,0.00016707,2]
[363839491,1748894960283,-430.0,0.00016707,2]
[363839492,1748894960306,-430.0,0.00016707,2]
[363839493,1748894960328,-440.0,0.00016707,2]
[363839494,1748894960349,-451.35741054,0.00016707,2]
[363839496,1748894960372,-450.0,0.00016707,2]
[363839497,1748894960394,-430.0,0.00016707,2]
[363839498,1748894960418,-440.0,0.00016707,2]
[363839499,1748894960439,-4952.08249545,0.00016708,2]
[363839722,1748895033863,-300.0,0.00016706,2]
[363839723,1748895033872,-565.0,0.00016706,2]
[363839724,1748895033882,-440.0,0.00016707,2]
[363839725,1748895033892,-155.65,0.00016707,2]
[363839726,1748895033902,-443.05644999,0.00016707,2]
[363839727,1748895033912,-430.0,0.00016707,2]
[363839728,1748895033921,-440.0,0.00016707,2]
[363839729,1748895033934,-450.0,0.00016707,2]
[363839730,1748895033944,-430.0,0.00016707,2]
[363839731,1748895033954,-440.0,0.00016707,2]
[363839732,1748895033964,-430.0,0.00016707,2]
[363839733,1748895033974,-430.0,0.00016707,2]
[363839735,1748895033984,-440.0,0.00016707,2]
[363839738,1748895033994,-440.0,0.00016707,2]
[363839740,1748895034004,-440.0,0.00016707,2]
[363839742,1748895034014,-16108.40287145,0.00016708,2]
[363839744,1748895034024,-440.0,0.00016708,2]
[363839746,1748895034034,-430.0,0.00016708,2]
[363839749,1748895034044,-430.0,0.00016708,2]
[363839751,1748895034054,-507.37100855,0.00016708,2]
[363839753,1748895034063,-430.0,0.00016708,2]
[363839755,1748895034074,-450.0,0.00016708,2]
[363839757,1748895034084,-430.0,0.00016708,2]
[363839759,1748895034093,-430.0,0.00016708,2]
[363839761,1748895034103,-452.22842123,0.00016708,2]
[363839763,1748895034114,-181.83062994,0.00016708,2]
[363839765,1748895034124,-430.0,0.00016708,2]
[363839767,1748895034133,-430.0,0.00016708,2]
[363839769,1748895034143,-430.0,0.00016708,2]
[363839771,1748895034153,-430.0,0.00016708,2]
[363839773,1748895034162,-440.0,0.00016708,2]
[363839774,1748895034172,-430.0,0.00016708,2]
[363839775,1748895034183,-430.0,0.00016708,2]
[363839776,1748895034192,-430.0,0.00016708,2]
[363839777,1748895034202,-430.0,0.00016708,2]
[363839778,1748895034211,-430.0,0.00016708,2]
[363839779,1748895034222,-440.0,0.00016708,2]
[363839780,1748895034232,-430.0,0.00016708,2]
[363839781,1748895034242,-430.0,0.00016708,2]
[363839783,1748895034253,-440.0,0.00016708,2]
[363839785,1748895034263,-440.0,0.00016708,2]
[363839787,1748895034273,-440.0,0.00016708,2]
[363839789,1748895034283,-503.58836565,0.00016708,2]
[363839791,1748895034295,-440.0,0.00016708,2]
[363839794,1748895034305,-430.0,0.00016708,2]
[363839795,1748895034315,-430.0,0.00016708,2]
[363839796,1748895034326,-450.0,0.00016708,2]
[363839797,1748895034337,-430.0,0.00016708,2]
[363839798,1748895034347,-450.0,0.00016708,2]
[363839799,1748895034358,-440.0,0.00016708,2]
[363839801,1748895034368,-430.0,0.00016708,2]
[363839802,1748895034378,-430.0,0.00016708,2]
[363839803,1748895034391,-440.0,0.00016708,2]
[363839804,1748895034403,-440.0,0.00016708,2]
[363839805,1748895034413,-430.64807972,0.00016708,2]
[363839806,1748895034425,-440.0,0.00016708,2]
[363839808,1748895034435,-430.0,0.00016708,2]
[363839809,1748895034445,-440.0,0.00016708,2]
[363839810,1748895034455,-450.0,0.00016708,2]
[363839811,1748895034465,-430.0,0.00016708,2]
[363839812,1748895034476,-430.0,0.00016708,2]
[363839813,1748895034486,-430.0,0.00016708,2]
[363839814,1748895034496,-430.0,0.00016708,2]
[363839815,1748895034507,-440.0,0.00016708,2]
[363839816,1748895034518,-430.0,0.00016708,2]
[363839817,1748895034528,-430.0,0.00016708,2]
[363839818,1748895034537,-430.0,0.00016708,2]
[363839819,1748895034547,-570.0,0.00016708,2]
[363839820,1748895034557,-467.13,0.00016708,2]
[363839821,1748895034568,-512.08,0.00016708,2]
[363839822,1748895034578,-430.0,0.00016708,2]
[363839823,1748895034588,-430.0,0.00016708,2]
[363839824,1748895034598,-430.0,0.00016708,2]
[363839825,1748895034607,-430.0,0.00016708,2]
[363839826,1748895034617,-430.0,0.00016708,2]
[363839827,1748895034627,-430.0,0.00016708,2]
[363839828,1748895034638,-440.0,0.00016708,2]
[363839829,1748895034649,-440.0,0.00016708,2]
[363839830,1748895034659,-374.11694667,0.00016708,2]
[363839831,1748895034670,-440.0,0.00016708,2]
[363839832,1748895034682,-430.0,0.00016708,2]
[363839833,1748895034691,-440.0,0.00016708,2]
[363839834,1748895034701,-440.0,0.00016708,2]
[363839835,1748895034711,-176.25279022,0.00016708,2]
[363839836,1748895034720,-430.0,0.00016708,2]
[363839837,1748895034729,-440.0,0.00016708,2]
[363839838,1748895034739,-440.0,0.00016708,2]
[363839839,1748895034750,-440.0,0.00016708,2]
[363839840,1748895034759,-430.0,0.00016708,2]
[363839841,1748895034769,-264.09338931,0.00016708,2]
[363839842,1748895034779,-451.16440759,0.00016708,2]
[363839843,1748895034788,-430.0,0.00016708,2]
[363839844,1748895034798,-450.0,0.00016708,2]
[363839846,1748895034808,-240.0,0.00016708,2]
[363839849,1748895034996,-430.0,0.00016708,2]
[363839850,1748895035007,-430.0,0.00016708,2]
[363839851,1748895035017,-430.0,0.00016708,2]
[363839852,1748895035026,-430.0,0.00016708,2]
[363839853,1748895035037,-440.0,0.00016708,2]
[363839854,1748895035047,-430.0,0.00016708,2]
[363839855,1748895035058,-450.0,0.00016708,2]
[363839856,1748895035068,-301.74819044,0.00016708,2]
[363839857,1748895035077,-430.0,0.00016708,2]
[363839859,1748895035087,-430.0,0.00016708,2]
[363839860,1748895035096,-430.0,0.00016708,2]
[363839861,1748895035106,-535.39,0.00016708,2]
[363839862,1748895035116,-452.15563039,0.00016708,2]
[363839864,1748895035125,-440.0,0.00016708,2]
[363839865,1748895035134,-430.0,0.00016708,2]
[363839866,1748895035144,-401.12668049,0.00016708,2]
[363839867,1748895035154,-430.0,0.00016708,2]
[363839868,1748895035163,-430.0,0.00016708,2]
[363839869,1748895035173,-430.0,0.00016708,2]
[363839870,1748895035183,-450.33296573,0.00016708,2]
[363839871,1748895035193,-430.0,0.00016708,2]
[363839872,1748895035203,-430.0,0.00016708,2]
[363839873,1748895035212,-450.0,0.00016708,2]
[363839874,1748895035222,-430.0,0.00016708,2]
[363839875,1748895035232,-430.0,0.00016708,2]
[363839876,1748895035242,-430.0,0.00016708,2]
[363839877,1748895035252,-430.0,0.00016708,2]
[363839878,1748895035262,-440.0,0.00016708,2]
[363839879,1748895035272,-430.0,0.00016708,2]
[363839880,1748895035281,-430.0,0.00016708,2]
[363839881,1748895035291,-440.0,0.00016708,2]
[363839882,1748895035301,-430.0,0.00016708,2]
[363839883,1748895035311,-430.0,0.00016708,2]
[363839884,1748895035321,-200.0,0.00016708,2]
[363839885,1748895035332,-430.0,0.00016708,2]
[363839886,1748895035343,-430.0,0.00016708,2]
[363839887,1748895035353,-430.0,0.00016708,2]
[363839888,1748895035364,-430.0,0.00016708,2]
[363839889,1748895035374,-236.64366156,0.00016708,2]
[363839890,1748895035384,-430.0,0.00016708,2]
[363839891,1748895035398,-430.0,0.00016708,2]
[363839892,1748895035408,-400.0,0.00016708,2]
[363839893,1748895035418,-440.0,0.00016708,2]
[363839894,1748895035429,-430.0,0.00016708,2]
[363839895,1748895035439,-440.0,0.00016708,2]
[363839896,1748895035449,-515.3,0.00016708,2]
[363839897,1748895035459,-440.0,0.00016708,2]
[363839898,1748895035470,-430.0,0.00016708,2]
[363839899,1748895035481,-450.0,0.00016708,2]
[363839900,1748895035491,-469.1,0.00016708,2]
[363839901,1748895035500,-430.0,0.00016708,2]
[363839902,1748895035511,-430.0,0.00016708,2]
[363839903,1748895035520,-440.0,0.00016708,2]
[363839904,1748895035531,-440.0,0.00016708,2]
[363839905,1748895035540,-430.0,0.00016708,2]
[363839906,1748895035550,-430.0,0.00016708,2]
[363839907,1748895035560,-440.0,0.00016708,2]
[363839908,1748895035569,-430.0,0.00016708,2]
[363839909,1748895035581,-440.0,0.00016708,2]
[363839910,1748895035590,-440.0,0.00016708,2]
[363839911,1748895035600,-440.0,0.00016708,2]
[363839912,1748895035609,-430.0,0.00016708,2]
[363839913,1748895035619,-447.44,0.00016708,2]
[363839914,1748895035629,-430.0,0.00016708,2]
[363839915,1748895035639,-501.07368235,0.00016708,2]
[363839916,1748895035648,-451.61966294,0.00016708,2]
[363839917,1748895035658,-440.0,0.00016708,2]
[363839918,1748895035668,-401.04471963,0.00016708,2]
[363839919,1748895035679,-450.0,0.00016708,2]
[363839920,1748895035689,-450.0,0.00016708,2]
[363839921,1748895035698,-152.89878652,0.00016708,2]
[363839922,1748895035708,-431.92347521,0.00016708,2]
[363839923,1748895035718,-400.89997093,0.00016708,2]
[363839924,1748895035728,-430.0,0.00016708,2]
[363839925,1748895035738,-430.0,0.00016708,2]
[363839926,1748895035747,-440.0,0.00016708,2]
[363839927,1748895035757,-440.0,0.00016708,2]
[363839928,1748895035766,-430.0,0.00016708,2]
[363839929,1748895035776,-440.0,0.00016708,2]
[363839930,1748895035786,-587.34241287,0.00016708,2]
[363839931,1748895035796,-451.0360057,0.00016708,2]
[363839932,1748895035806,-440.0,0.00016708,2]
[363839933,1748895035816,-430.0,0.00016708,2]
[363839934,1748895035825,-430.0,0.00016708,2]
[363839935,1748895035835,-440.0,0.00016708,2]
[363839936,1748895035846,-454.7468304,0.00016709,2]
[363839937,1748895035855,-430.0,0.00016709,2]
[363839938,1748895035865,-430.0,0.00016709,2]
[363839939,1748895035875,-440.0,0.00016709,2]
[363839940,1748895035885,-440.0,0.00016709,2]
[363839941,1748895035894,-440.0,0.00016709,2]
[363839942,1748895035905,-440.0,0.00016709,2]
[363839943,1748895035916,-430.0,0.00016709,2]
[363839944,1748895035927,-430.0,0.00016709,2]
[363839945,1748895035936,-430.0,0.00016709,2]
[363839946,1748895035946,-430.0,0.00016709,2]
[363839947,1748895035956,-430.0,0.00016709,2]
[363839948,1748895035966,-430.0,0.00016709,2]
[363839949,1748895035976,-430.0,0.00016709,2]
[363839950,1748895035986,-450.0,0.00016709,2]
[363839951,1748895035997,-430.0,0.00016709,2]
[363839952,1748895036006,-440.0,0.00016709,2]
[363839953,1748895036017,-450.0,0.00016709,2]
[363839954,1748895036026,-430.0,0.00016709,2]
[363839955,1748895036036,-430.0,0.00016709,2]
[363839956,1748895036046,-430.0,0.00016709,2]
[363839957,1748895036056,-430.0,0.00016709,2]
[363839958,1748895036066,-430.0,0.00016709,2]
[363839959,1748895036076,-430.0,0.00016709,2]
[363839960,1748895036086,-440.0,0.00016709,2]
[363839961,1748895036095,-440.0,0.00016709,2]
[363839962,1748895036105,-430.0,0.00016709,2]
[363839963,1748895036115,-430.0,0.00016709,2]
[363839964,1748895036124,-430.0,0.00016709,2]
[363839965,1748895036134,-569.64,0.00016709,2]
[363839966,1748895036144,-440.0,0.00016709,2]
[363839967,1748895036154,-430.0,0.00016709,2]
[363839968,1748895036163,-430.0,0.00016709,2]
[363839969,1748895036173,-440.0,0.00016709,2]
[363839970,1748895036184,-440.0,0.00016709,2]
[363839971,1748895036194,-430.0,0.00016709,2]
[363839972,1748895036204,-1008.73,0.00016709,2]
[363839973,1748895036213,-400.48370489,0.00016709,2]
[363839974,1748895036223,-430.0,0.00016709,2]
[363839975,1748895036234,-430.0,0.00016709,2]